[Event "Oceania Zonal Open 2023"]
[Site "Melbourne"]
[Date "2023.01.26"]
[Round "5.12"]
[White "Brown, Joshua"]
[Black "Clarke, Matthew"]
[Result "0-1"]
[ECO "B90"]
[WhiteElo "1865"]
[BlackElo "2104"]
[Annotator "TA"]
[PlyCount "82"]
[EventDate "2023.01.09"]
[EventType "swiss"]
[EventCountry "AUS"]
[SourceTitle "playchess.com"]
[Source "ChessBase"]
[SourceQuality "1"]
[TimeControl "5400+30"]

{[%evp 20,81,20,8,18,21,14,0,18,-21,-24,-46,-47,-50,-52,-55,-45,-62,-18,-41,-16,-65,-56,-72,-52,-69,-67,-105,0,-66,-73,-245,-231,-182,-68,-93,-101,-169,-182,-177,-140,-210,-210,-201,-197,-251,-237,-244,-247,-375,-353,-489,-478,-446,-237,-370,-200,-917,-903,-1086,-1103,-1158,-1088,-29999]} 1. e4 {[%emt 0:00:03]} c5 {[%emt 0:00:09]} 2. Nf3 {[%emt 0:00:15]} d6 {[%emt 0:00:08]} 3. d4 {[%emt 0:00:11]} cxd4 {[%emt 0:00:10]} 4. Nxd4 {[%emt 0:00:15]} Nf6 {[%emt 0:00:08]} 5. Nc3 {[%emt 0:00:14]} a6 {[%emt 0:00:08]} 6. Be3 {[%emt 0:00:20]} e5 {[%emt 0:00:18]} 7. Nb3 {[%emt 0:00:09]} Be6 {[%emt 0:00:12]} 8. f3 {[%emt 0:00:23]} h5 {[%emt 0:00:33]} 9. Qd2 {[%emt 0:00:27]} Nbd7 {[%emt 0:00:24][%cal Bb8d7,Bd7b6,Bb6d5,Bd5e3][%mdl 32]} 10. O-O-O {[%emt 0:00:43]} Be7 {[%emt 0:01:14]} 11. Kb1 {[%emt 0:01:35]} b5 {[%emt 0:02:30] B90: Sicilian Najdorf: Unusual White 6th moves, 6 Be3 Ng4 and 6 Be3 e5.} 12. Nd5 {[%emt 0:00:59]} Bxd5 {[%emt 0:02:39]} 13. exd5 {[%emt 0:00:08]} Nb6 {[%emt 0:00:21] The position is equal.} 14. Na5 {[%emt 0:07:52]} (14. Bxb6 $5 Qxb6 15. Bd3 $11) 14... Nbxd5 {[%emt 0:04:56]} 15. Nc6 {[%emt 0:00:51]} Qc7 {[%emt 0:02:16]} 16. Nxe7 $1 {[%emt 0:01:02]} Nxe3 {[%emt 0:01:05]} (16... Kxe7 17. Bg5 Nb6 18. Bd3 $11) 17. Qxe3 {[%emt 0:11:47] [#]} Kxe7 $146 {[%emt 0:02:35]} ({Predecessor:} 17... Qxe7 18. Bd3 O-O 19. Qg5 g6 20. f4 Rae8 21. h3 Nd7 22. Qh6 Qf6 23. f5 e4 {1-0 Elmi,S (2110)-Falkevall,A (2256) Nordic-ch U17 2022 (3)}) 18. Bd3 {[%emt 0:06:24]} Rhe8 {[%emt 0:04:44]} 19. Qg5 {[%emt 0:03:20]} Kf8 {[%emt 0:02:34]} (19... Qc5 {with more complications.} 20. Be4 Rad8 21. h3 Rh8) 20. h3 {[%emt 0:16:50]} (20. Bf5 $11) 20... d5 $15 {[%emt 0:04:25]} 21. Bf5 {[%emt 0:06:31]} Qd6 {[%emt 0:10:15]} 22. g4 {[%emt 0:02:44]} g6 $36 {[%emt 0:02:01][%mdl 2048] Black has some pressure.} 23. Bd3 {[%emt 0:06:17] [#]} Rac8 {[%emt 0:05:31]} (23... Kg7 $1 $17 24. c3 Rac8) 24. Rhg1 {[%emt 0:04:13]} (24. Qh6+ $1 $11 Ke7 25. Qg5) 24... hxg4 {[%emt 0:02:27]} 25. fxg4 {[%emt 0:12:53]} (25. Qh6+ $17 {is a better defense.} Ke7 26. hxg4) 25... e4 $19 {[%emt 0:03:07]} 26. Be2 {[%emt 0:00:34]} Qe5 {[%emt 0:04:41]} ({And not} 26... Qc6 27. c3 $17) ({Better is} 26... e3 $19 {Strongly threatening ...Kg7.} 27. h4 Kg7) 27. Qe3 {[%emt 0:01:29]} Red8 {[%emt 0:06:36][%cal Be8d8,Bd8d6,Bd6c6][%mdl 32] Hoping for ...d4.} 28. Rd4 {[%emt 0:03:05]} (28. Rgf1 $17) 28... Ne8 {[%emt 0:05:57][%cal Bf6e8,Be8c7,Bc7e6,Be6f4][%mdl 32]} ({Worse is} 28... Qc7 29. c3 $15) 29. h4 {[%emt 0:03:28]} Nc7 {[%emt 0:05:06]} 30. h5 {[%emt 0:00:45]} (30. Rf1 $17) 30... Ne6 {[%emt 0:00:41]} 31. Rdd1 {[%emt 0:02:20]} g5 {[%emt 0:02:18]} 32. Qa3+ {[%emt 0:02:30]} (32. Rge1 {was worth a try.}) 32... Rd6 {[%emt 0:04:04]} 33. Rge1 {[%emt 0:01:34]} Kg8 {[%emt 0:02:33]} 34. Rf1 {[%emt 0:02:55]} (34. c3 {might work better.}) 34... Nf4 {[%emt 0:00:54]} 35. Rfe1 {[%emt 0:00:43]} Rdc6 {[%emt 0:04:20]} 36. c3 {[%emt 0:00:31]} Qc7 {[%emt 0:03:54]} (36... e3 $142 37. Qb3 d4) 37. Qb4 {[%emt 0:00:47]} (37. Qb3 $142) 37... Qa7 {[%emt 0:00:52]} (37... Nxe2 $142 38. Rxe2 Rc4) 38. Rd4 {[%emt 0:01:24] Prevents Rc4} (38. Qd4 Qe7 39. Rd2) 38... Nxe2 {[%emt 0:03:15]} 39. Rxe2 {[%emt 0:00:10]} a5 {[%emt 0:00:30]} ({Don't blunder} 39... Rc4 $2 40. Rxc4 dxc4 41. Qd6 Qg1+ 42. Kc2 Qxg4 43. Qd2 $19) 40. Qxb5 {[%emt 0:01:16] [#]} Qxd4 $3 {[%emt 0:00:16][%mdl 576] Back Rank} 41. cxd4 {[%emt 0:00:31]} (41. Re1 Rb6) 41... Rc1# {[%emt 0:00:08] Artfully played by Clarke.   Weighted Error Value: White=0.79/Black=0.24 (precise)} 0-1

[Event "Oceania Zonal Open 2023"]
[Site "Melbourne"]
[Date "2023.01.26"]
[Round "6.1"]
[White "Gong, Patrick"]
[Black "Kuybokarov, Temur"]
[Result "1/2-1/2"]
[ECO "C47"]
[WhiteElo "2292"]
[BlackElo "2558"]
[Annotator "TA"]
[PlyCount "60"]
[EventDate "2023.01.09"]
[EventType "swiss"]
[EventCountry "AUS"]
[SourceTitle "playchess.com"]
[Source "ChessBase"]
[SourceQuality "1"]
[TimeControl "5400+30"]

{[%evp 9,60,-50,-47,-64,-65,-75,-88,-81,-72,-64,-51,-65,-44,-76,-53,-76,-80,-90,-95,-90,-94,-99,-85,-87,0,-68,-74,-72,-83,-70,-39,-33,18,15,18,0,0,-52,31,43,44,41,41,24,35,23,39,29,42,14,20,0,16]} 1. e4 {[%emt 0:00:11]} e5 {[%emt 0:00:12]} 2. Nf3 {[%emt 0:00:11]} Nc6 {[%emt 0:00:09]} 3. Nc3 {[%emt 0:00:16]} Nf6 {[%emt 0:00:21][%cal Bg8f6,Bf6e4,Be4c3][%mdl 32]} 4. d4 {[%emt 0:00:11]} Bb4 {[%emt 0:00:47]} 5. dxe5 {[%emt 0:10:31]} Nxe4 {[%emt 0:00:15]} 6. Bd2 {[%emt 0:00:58] C47: Scotch Four Knights and Four Knights with 4 g3.} Bxc3 {[%emt 0:08:03]} 7. bxc3 {[%emt 0:07:53]} Qe7 {[%emt 0:09:07] [#]} 8. Be3 $146 {[%emt 0:16:54] Black is better.} ({Predecessor:} 8. Bd3 Nxd2 9. Qxd2 Nxe5 10. O-O-O O-O 11. Rde1 Nxd3+ 12. Qxd3 Qa3+ 13. Kd2 d5 14. Re5 c6 15. h4 Qd6 16. h5 f6 17. h6 fxe5 18. hxg7 Rf5 19. Nh4 Qh6+ {0-1 Lopez Ruiz,J (1796)-Labiano Hernandez,J (2176) ESP-ch U16 Salobrena 2020 (6)}) 8... Nxc3 {[%emt 0:20:21]} ({Of course not} 8... Nxe5 $6 9. Qd4 Nxf3+ 10. gxf3 $11) 9. Qd3 {[%emt 0:03:29]} Na4 {[%emt 0:04:10] Excellent horsemanship.} 10. Be2 {[%emt 0:05:18]} Nc5 {[%emt 0:02:18]} ({But not} 10... Nxe5 11. Qd4 $16) 11. Qa3 {[%emt 0:06:54]} b6 {[%emt 0:03:08]} 12. O-O {[%emt 0:02:28]} Ne6 {[%emt 0:01:57]} (12... Nxe5 $2 13. Bxc5 Qxc5 14. Qxc5 bxc5 15. Nxe5 $18) 13. Qa4 {[%emt 0:01:53]} Bb7 {[%emt 0:04:08]} 14. Rad1 {[%emt 0:07:08]} O-O-O {[%emt 0:03:32]} 15. Bc4 {[%emt 0:04:30]} Qb4 {[%emt 0:09:48]} 16. Qb3 {[%emt 0:03:52]} Qe7 {[%emt 0:05:17]} ({Black should play} 16... Qxb3 $17 17. axb3 h6) 17. Bd5 {[%emt 0:02:17]} (17. Qa4 $1 $11) 17... Na5 {[%emt 0:03:09]} 18. Qc3 {[%emt 0:02:36]} f5 {[%emt 0:02:16]} 19. exf6 {[%emt 0:06:49]} gxf6 {[%emt 0:01:54]} 20. Nh4 {[%emt 0:00:43]} Bxd5 {[%emt 0:02:46]} ({Better is} 20... Kb8 $15) 21. Nf5 $11 {[%emt 0:00:31]} Qf8 {[%emt 0:00:13]} 22. Rxd5 {[%emt 0:01:29]} Nc6 {[%emt 0:00:11]} 23. Qc4 {[%emt 0:02:23]} (23. Rb1 $11) 23... Qa3 {[%emt 0:01:36] [#]} (23... Kb7 $1 $15) 24. Rxd7 $1 $14 {[%emt 0:01:20][%mdl 64] Discovered Attack} Ne5 {[%emt 0:04:08]} 25. Rxd8+ {[%emt 0:02:23]} Nxd8 {[%emt 0:00:04]} 26. Qh4 {[%emt 0:00:40]} (26. Qb3 {simplifies} Qxb3 27. axb3 Nec6 28. f3) 26... Rf8 {[%emt 0:01:55][%cal Bh8f8,Bf8f7,Bf7d7][%mdl 32]} 27. Qxh7 {[%emt 0:01:18]} Qxa2 {[%emt 0:00:15]} 28. h4 {[%emt 0:00:36]} Rf7 {[%emt 0:01:06]} 29. Qg8 {[%emt 0:00:32] [#] aiming for Rd1.} Qe6 $1 {[%emt 0:01:01]} (29... Qxc2 $2 30. Nd6+ cxd6 31. Rc1 $18) 30. Rd1 {[%emt 0:01:05]} Rd7 {[%emt 0:00:33] An exciting game.   Weighted Error Value: White=0.14 (very precise) /Black=0.15 (very precise)} 1/2-1/2

[Event "Oceania Zonal Open 2023"]
[Site "Melbourne"]
[Date "2023.01.26"]
[Round "6.2"]
[White "Zhao, Zong-Yuan"]
[Black "Fu, Yihe"]
[Result "1-0"]
[ECO "A19"]
[WhiteElo "2488"]
[BlackElo "2149"]
[Annotator "TA"]
[PlyCount "59"]
[EventDate "2023.01.09"]
[EventType "swiss"]
[EventCountry "AUS"]
[SourceTitle "playchess.com"]
[Source "ChessBase"]
[SourceQuality "1"]
[TimeControl "5400+30"]

{[%evp 18,59,22,22,86,77,79,89,103,102,102,89,100,95,89,89,95,90,137,135,148,114,116,110,114,113,137,125,187,150,223,124,150,137,504,490,531,525,525,523,577,518,559,583]} 1. c4 {[%emt 0:08:10]} Nf6 {[%emt 0:00:18]} 2. Nc3 {[%emt 0:00:25]} e6 {[%emt 0:01:00]} 3. e4 {[%emt 0:00:17][%cal Be2e4,Be4e5][%mdl 32]} c5 {[%emt 0:01:09]} 4. e5 {[%emt 0:00:58]} Ng8 {[%emt 0:00:12]} 5. Nf3 {[%emt 0:00:04]} Nc6 {[%emt 0:00:10]} 6. d4 {[%emt 0:00:04]} cxd4 {[%emt 0:00:16]} 7. Nxd4 {[%emt 0:00:05]} Nxe5 {[%emt 0:02:52]} 8. Ndb5 {[%emt 0:00:12]} a6 {[%emt 0:02:03]} 9. Nd6+ {[%emt 0:00:10]} Bxd6 {[%emt 0:00:08]} 10. Qxd6 {[%emt 0:00:04]} Ng6 {[%emt 0:03:42] A19: English Opening: Flohr-Mikenas System with 3...c5.} (10... f6 $11 {keeps the balance.}) 11. Be3 $16 {[%emt 0:03:44][%cal Oh2h4,Bc1e3,Be3b6,Bb6c5][%mdl 32]} Qe7 {[%emt 0:01:28]} 12. Qb6 {[%emt 0:02:47] [#] aiming for Ne4.} Qd8 {[%emt 0:03:45] [#] White is better.} 13. Qxd8+ $146 {[%emt 0:09:23]} ({Predecessor:} 13. Qb4 N8e7 14. Bc5 O-O 15. h4 Nc6 16. Qb3 Re8 17. O-O-O f5 18. Na4 Qa5 19. h5 {0-1 Vogel,C-Dickl,E GER-chT 2BK Gr09 Br2 corr 1995}) 13... Kxd8 {[%emt 0:00:13]} 14. Bb6+ {[%emt 0:00:02]} Ke7 {[%emt 0:00:21]} 15. O-O-O {[%emt 0:00:11][%mdl 1024] White has strong compensation.} Nf6 {[%emt 0:08:37]} 16. Bc5+ {[%emt 0:03:54]} Kd8 {[%emt 0:00:27]} 17. g3 {[%emt 0:07:41]} Ne8 {[%emt 0:02:27] Black is weak on the dark squares} (17... b5 $142) 18. Bb6+ {[%emt 0:03:30]} Ke7 {[%emt 0:00:30]} 19. c5 {[%emt 0:00:08]} Ne5 {[%emt 0:01:21]} 20. f4 {[%emt 0:09:03]} Ng4 {[%emt 0:02:23]} 21. Rd2 $36 {[%emt 0:04:22][%mdl 2048] Inhibits Nf2. White has strong initiative.} f5 {[%emt 0:01:12]} 22. Be2 {[%emt 0:08:45][%cal Bf1e2,Be2f3,Bf3b7][%mdl 32]} Nh6 {[%emt 0:04:15]} (22... a5 $16 23. Bf3 h5) 23. Rhd1 {[%emt 0:05:26]} Nf7 {[%emt 0:01:12]} (23... Ng4 $16 24. Rh1 h5) 24. a4 {[%emt 0:02:05]} (24. Na4 $18) 24... Rg8 {[%emt 0:03:31]} 25. Bf3 {[%emt 0:05:28][%cal Of3b7] Bxb7! is the strong threat. White has more active pieces.} g6 $2 {[%emt 0:06:14][%mdl 8192] [#] A mistake that costs the game.} (25... Nd8 $16 26. Nb1 Nc6) 26. Bxb7 $1 $18 {[%emt 0:00:48][%mdl 576] Decoy. White is clearly winning.} Bxb7 {[%emt 0:00:44]} (26... Rb8 27. Bxc8) 27. Rxd7+ {[%emt 0:00:04]} Kf8 {[%emt 0:01:12] And now ...Bc6 would win.} 28. Rxb7 {[%emt 0:00:05]} Rg7 {[%emt 0:00:24]} 29. Rdd7 {[%emt 0:01:58]} Nf6 {[%emt 0:00:27]} 30. Re7 {[%emt 0:03:29] Weighted Error Value: White=0.17 (very precise) /Black=0.41} 1-0

[Event "Oceania Zonal Open 2023"]
[Site "Melbourne"]
[Date "2023.01.26"]
[Round "6.3"]
[White "Papantoniou, John"]
[Black "Sardana, Rishi"]
[Result "0-1"]
[ECO "A21"]
[WhiteElo "2067"]
[BlackElo "2459"]
[Annotator "TA"]
[PlyCount "62"]
[EventDate "2023.01.09"]
[EventType "swiss"]
[EventCountry "AUS"]
[SourceTitle "playchess.com"]
[Source "ChessBase"]
[SourceQuality "1"]
[TimeControl "5400+30"]

{[%evp 9,62,-22,-16,-26,-25,-25,-13,-6,-20,-22,-22,-35,3,-18,-13,-10,-17,-39,-1,-11,-20,-16,0,-89,-95,-114,-119,-156,-154,-155,-137,-239,-123,-272,-260,-297,-250,-287,-296,-346,-348,-343,-347,-362,-369,-469,-471,-760,-685,-752,-746,-726,-666,-797,-782]} 1. c4 {[%emt 0:00:02]} e5 {[%emt 0:06:33]} 2. Nc3 {[%emt 0:00:06]} Bb4 {[%emt 0:01:26]} 3. e4 {[%emt 0:00:05]} d6 {[%emt 0:00:44]} 4. Nge2 {[%emt 0:00:54]} Nc6 {[%emt 0:01:29]} 5. a3 {[%emt 0:03:59]} Bc5 {[%emt 0:00:27]} 6. b4 {[%emt 0:03:43] A21: English Opening: 1...e5 2 Nc3.} Bb6 {[%emt 0:00:10] [#]} 7. Nd5 $146 {[%emt 0:10:36]} ({Predecessor:} 7. d3 f5 8. exf5 Bxf5 9. Be3 Nf6 10. Ng3 Be6 11. Be2 O-O 12. O-O Qd7 13. Na4 {½-½ Formento,P (2329)-Bjerre,J (2549) Bassano del Grappa GM Mix 2nd 2021 (8)}) 7... Nge7 {[%emt 0:09:11]} 8. Nxb6 {[%emt 0:04:00] The position is equal.} axb6 $40 {[%emt 0:00:44][%mdl 128] White needs to defend precisely.} 9. b5 {[%emt 0:04:41]} Na5 {[%emt 0:00:45]} 10. Ng3 {[%emt 0:00:33]} Be6 {[%emt 0:01:45][%cal Oc7c6]} 11. d4 {[%emt 0:11:19]} Bxc4 {[%emt 0:11:02]} (11... Nxc4 $2 12. d5 $18) 12. Bxc4 {[%emt 0:00:12]} Nxc4 {[%emt 0:00:07]} 13. Qc2 {[%emt 0:00:24]} Na5 {[%emt 0:04:17]} (13... d5 $5 {[%cal Re5d4]} 14. dxe5 h5 $15) 14. Bb2 {[%emt 0:00:15]} f6 {[%emt 0:01:43]} 15. O-O {[%emt 0:00:24] Black must now prevent dxe5.} O-O {[%emt 0:01:01]} 16. f4 {[%emt 0:02:24]} (16. dxe5 $11 fxe5 17. Rac1) 16... exf4 $17 {[%emt 0:01:24]} 17. Rxf4 {[%emt 0:02:04]} d5 {[%emt 0:00:47]} 18. exd5 {[%emt 0:34:59]} Nxd5 {[%emt 0:02:24]} 19. Rf3 {[%emt 0:03:52]} Qd7 {[%emt 0:01:13]} 20. Raf1 {[%emt 0:02:14]} (20. Qd3 $17) 20... Rae8 {[%emt 0:08:49]} ({Black should try} 20... Qxb5 $19 {aiming for ...Rfe8.} 21. Ne4 Nc4) 21. Bc1 {[%emt 0:01:16] Loses the game.} (21. Qd3 $17) 21... Qxb5 $19 {[%emt 0:02:15]} 22. Nf5 {[%emt 0:01:00]} Qe2 {[%emt 0:02:04]} 23. Qb1 {[%emt 0:01:16]} g6 {[%emt 0:06:43]} 24. Bh6 {[%emt 0:09:19]} Rf7 {[%emt 0:02:31]} ({Much less strong is} 24... gxf5 25. Rg3+ Kh8 26. Bg7+ Kg8 27. Qxf5 $18 (27. Bxf8+ Kxf8 28. Qxf5 Qe4 $11) (27. Bxf6+ Kf7 $14) (27. Bxf8+ Kxf8 28. Qxf5 Qe4 $11) (27. Bxf6+ Kf7 $11)) 25. Ng3 {[%emt 0:00:36]} Qc4 {[%emt 0:00:39]} 26. Kh1 {[%emt 0:01:11]} Nc6 {[%emt 0:05:53][%cal Ba5c6,Bc6d4,Bd4f5,Bf5h6][%mdl 32]} 27. Ne4 {[%emt 0:00:18][%cal Re4f6]} Nxd4 {[%emt 0:04:46] Black is clearly winning.} (27... Qxd4 $2 {perishes.} 28. Ng5 Rd7 29. Nh3 $19) 28. Nxf6+ {[%emt 0:01:31]} (28. Nd2 $142 Qa4 29. Rd3) 28... Nxf6 {[%emt 0:00:13]} 29. Rxf6 {[%emt 0:00:02]} Rxf6 {[%emt 0:00:14]} 30. Rxf6 {[%emt 0:00:02]} Nf5 {[%emt 0:01:08]} 31. h3 {[%emt 0:01:23]} Nxh6 {[%emt 0:01:05] Weighted Error Value: White=0.56/Black=0.13 (very precise)} 0-1

[Event "Oceania Zonal Open 2023"]
[Site "Melbourne"]
[Date "2023.01.26"]
[Round "6.4"]
[White "Lane, Gary W"]
[Black "Solomon, Stephen J"]
[Result "1-0"]
[ECO "B33"]
[WhiteElo "2343"]
[BlackElo "2279"]
[Annotator "TA"]
[PlyCount "91"]
[EventDate "2023.01.09"]
[EventType "swiss"]
[EventCountry "AUS"]
[SourceTitle "playchess.com"]
[Source "ChessBase"]
[SourceQuality "1"]
[TimeControl "5400+30"]

{[%evp 18,91,48,50,50,59,56,50,49,54,59,56,76,45,47,48,47,46,97,66,66,43,37,-4,-2,-16,-13,-60,-72,-72,0,0,12,12,12,-59,116,101,247,237,340,223,303,315,642,693,684,683,699,705,808,770,815,787,760,684,646,643,943,937,1008,507,797,1043,1036,1019,1017,925,4810,5329,29983,29984,29984,29985,29985,29986]} 1. e4 {[%emt 0:00:02]} c5 {[%emt 0:00:16]} 2. Nf3 {[%emt 0:00:07]} Nc6 {[%emt 0:00:08]} 3. d4 {[%emt 0:00:07]} cxd4 {[%emt 0:00:09]} 4. Nxd4 {[%emt 0:00:05]} Nf6 {[%emt 0:00:12]} 5. Nc3 {[%emt 0:00:07]} e5 {[%emt 0:00:55]} 6. Ndb5 {[%emt 0:00:45][%cal Bd4b5,Bb5a3,Ba3c4,Bc4e3,Be3d5,Bd5c7][%mdl 32]} d6 {[%emt 0:00:14]} 7. Bg5 {[%emt 0:00:49]} a6 {[%emt 0:00:20]} 8. Na3 {[%emt 0:00:06]} Be7 {[%emt 0:00:32]} 9. Nc4 {[%emt 0:02:58]} O-O {[%emt 0:00:15]} 10. Bxf6 {[%emt 0:01:16]} Bxf6 {[%emt 0:00:10] B33: Sicilian: Pelikan and Sveshnikov Variations.} 11. Qxd6 {[%emt 0:07:16]} Be6 {[%emt 0:00:38]} 12. Qxd8 {[%emt 0:12:44]} Raxd8 {[%emt 0:08:11] White is slightly better.} 13. Ne3 {[%emt 0:01:21]} Bg5 {[%emt 0:13:32] [#]} 14. Bd3 $146 {[%emt 0:01:08]} ({Predecessor:} 14. Ned5 Bxd5 15. Nxd5 Nb4 16. Nxb4 Bd2+ 17. Ke2 Bxb4 18. Rd1 Bc5 19. f3 Bd4 20. c3 {1-0 Clarke,B (2400)-Watson,B (2278) George Trundle IM 2019 (3)}) 14... g6 {[%emt 0:26:17]} 15. Ned5 {[%emt 0:18:21]} f5 {[%emt 0:15:04]} 16. h4 {[%emt 0:02:36][%cal Bh2h4,Bh4h5][%mdl 32]} Bh6 {[%emt 0:01:56]} 17. h5 {[%emt 0:00:06] [#] Nc7 is the strong threat.} Bg5 {[%emt 0:01:37]} (17... Kg7 $14) 18. f3 {[%emt 0:02:52]} Kg7 {[%emt 0:02:42]} 19. Nc7 {[%emt 0:07:03]} Bg8 {[%emt 0:02:08]} 20. Rd1 {[%emt 0:02:57]} Nb4 {[%emt 0:09:03]} 21. hxg6 {[%emt 0:03:56]} (21. N3d5 {keeps more tension.} Nxd5 22. exd5 Rf6 23. hxg6 hxg6 24. g4) 21... hxg6 {[%emt 0:01:02]} 22. a3 {[%emt 0:00:06]} (22. N3d5 $11 {might be stronger.} Nxd5 23. exd5) 22... Nxd3+ $15 {[%emt 0:01:24]} 23. Rxd3 {[%emt 0:00:51]} fxe4 {[%emt 0:01:49]} (23... Rxd3 $17 24. cxd3 Rc8) 24. fxe4 $11 {[%emt 0:03:32]} (24. Nxe4 $2 {too greedy.} Rxd3 25. cxd3 Bd8 26. Nxa6 (26. Na8 $2 b6 $19) 26... bxa6 $19) 24... Bc1 {[%emt 0:06:39] A strong pair of Bishops.} 25. N3d5 {[%emt 0:02:47] White wants to play Rb3.} Rd7 $1 {[%emt 0:00:44]} 26. Rb3 {[%emt 0:01:58]} (26. Ke2 $11 Bxb2 27. Rb1 Bxd5 28. Nxd5) 26... b5 $2 {[%emt 0:04:00]} (26... Rxc7 $1 $15 {stays ahead.} 27. Nxc7 Bxb3 28. cxb3 Rc8) 27. Nxa6 $16 {[%emt 0:11:37] Hoping for Ke2.} Bxd5 {[%emt 0:00:12] A mistake that costs the game.} (27... Rc8 $16) 28. exd5 $18 {[%emt 0:00:05]} Rc8 {[%emt 0:01:30] Prevents Nc5} (28... Rxd5 $142 29. Nc7 Rd6) 29. Nb4 {[%emt 0:06:11] Rbh3 would be deadly.} ({Weaker is} 29. Rxb5 Rxc2 30. Nc5 Rxd5 31. Ne6+ Kf7 32. Rxd5 Kxe6 $16) 29... Rc4 {[%emt 0:00:43]} 30. Rbh3 {[%emt 0:05:39] Prevents Bg5} Kf6 $2 {[%emt 0:00:53]} (30... Rd6 31. Nd3 (31. Rh7+ Kg8 $16) 31... Bf4) 31. O-O+ {[%emt 0:00:14]} Bf4 {[%emt 0:00:30]} 32. g3 {[%emt 0:00:22][%mdl 64] [#] Pin} g5 {[%emt 0:00:34]} 33. gxf4 {[%emt 0:01:20]} exf4 {[%emt 0:00:13]} 34. Rh6+ {[%emt 0:00:46]} Kf5 {[%emt 0:00:10]} 35. Re1 {[%emt 0:01:21]} Rd4 {[%emt 0:01:01]} 36. Kf2 {[%emt 0:01:05]} Rd2+ {[%emt 0:00:49]} 37. Re2 {[%emt 0:00:02]} Rd1 {[%emt 0:00:57]} 38. Nc6 {[%emt 0:01:35] Prevents Rd4. And now Re5+ would win.} R7xd5 {[%emt 0:01:06]} 39. Ne7+ {[%emt 0:00:13]} Kg4 {[%emt 0:00:03]} 40. Nxd5 {[%emt 0:00:12]} Rxd5 {[%emt 0:00:04]} 41. b3 {[%emt 0:00:30]} Rd4 {[%emt 0:00:13]} 42. Rh1 {[%emt 0:00:36]} f3 {[%emt 0:01:38]} 43. Ke3 {[%emt 0:01:59]} fxe2 {[%emt 0:00:38]} 44. Kxd4 {[%emt 0:00:04] White mates.} Kf3 {[%emt 0:00:09]} 45. Kd3 {[%emt 0:00:17]} g4 {[%emt 0:00:15]} 46. Re1 {[%emt 0:00:05] Weighted Error Value: White=0.24 (precise) /Black=0.47} 1-0